Cogmind - Beta 14 @@@ ROGUE MODE // 2024.08.15 @ 15:09:06 Player: H3-RMN Result: Smashed by cave-in Performance ------------- Evolutions (0) 0 Regions Visited (3) 600 Robots Destroyed (41) 205 Value Destroyed (961) 961 Prototype IDs (0) 0 Alien Tech Used (0) 0 Bonus (99) 99 TOTAL SCORE: 1865 Bonus ------- Follower Combat Kills 99 Cogmind --------- Core Integrity 0/250 Matter 300/300 Energy 100/100 System Corruption 11% Temperature Warm (125) Movement Treading (240) Ox1 Location -10/Subcaves Parts ------- > --- POWER (1) -------- (None) > --- PROPULSION (2) --- Light Treads > --- UTILITY (2) ------ Large Storage Unit > --- WEAPON (2) ------- Battle Rifle > --- INVENTORY (15) --- Ion Engine Subdweller Power Source Subdweller Monowheel Subdweller Monowheel Transport Network Coupler Hacking Suite Subdweller Laser Subdweller Laser Subdweller Laser Subdweller Machine Gun Improved Light Cannon Improved Light Cannon Datajack Flail Shrapnel Trap Peak State ------------ > --- POWER ------------ Subdweller Power Source > --- PROPULSION ------- Light Treads Light Treads > --- UTILITY ---------- Large Storage Unit Makeshift System Restoration Module > --- WEAPON ----------- Subdweller Beam Cannon Improved Light Cannon > --- INVENTORY -------- Ion Engine Subdweller Monowheel Subdweller Monowheel Transport Network Coupler Hacking Suite Subdweller Laser Subdweller Laser Subdweller Laser Battle Rifle Subdweller Machine Gun Improved Light Cannon Datajack Flail Shrapnel Trap [Rating: 15] Favorites ----------- Power Ion Engine Engine Ion Engine Propulsion Light Treads Treads Light Treads Wheel Wheel Utility Large Storage Unit Device Makeshift System Restoration Module Storage Large Storage Unit Protection Medium Armor Plating Weapon Improved Light Cannon Energy Gun Subdweller Laser Energy Cannon Subdweller Beam Cannon Ballistic Gun Assault Rifle Ballistic Cannon Improved Light Cannon Build | -11 -10 -10 -10 ------- Run | Yrd Mat Min Sub Slots Evolved . | . . . . Power . | . . . . Propulsion . | . . . . Utility . | . . . . Weapon . | . . . . Parts Attached 58 | 9 27 2 20 Power 6 | 1 2 . 3 Engine 6 | 1 2 . 3 Core . | . . . . Reactor . | . . . . Propulsion 14 | 4 7 . 3 Treads 7 | 1 3 . 3 Leg . | . . . . Wheel 7 | 3 4 . . Hover . | . . . . Flight . | . . . . Utility 10 | 2 5 . 3 Device 2 | 1 . . 1 Storage 2 | 1 1 . . Processor . | . . . . Hackware . | . . . . Protection 6 | . 4 . 2 Artifact . | . . . . Weapon 28 | 2 13 2 11 Energy Gun 2 | . . . 2 Energy Cannon 1 | . . . 1 Ballistic Gun 15 | 2 10 . 3 Ballistic Cannon 10 | . 3 2 5 Launcher . | . . . . Special Weapon . | . . . . Impact Weapon . | . . . . Slashing Weapon . | . . . . Piercing Weapon . | . . . . Special Melee Weapon . | . . . . Unidentified Prototypes . | . . . . Parts Lost 13 | . 2 . 11 Power 1 | . . . 1 Propulsion 5 | . 1 . 4 Utility 5 | . 1 . 4 Weapon 2 | . . . 2 Highest Loss Streak 4 | . 2 . 4 To Critical Strikes . | . . . . Average Slot Usage (%) 99 | . 98 100 99 Engine 13 | . 13 14 14 Treads 19 | . 13 14 27 Wheel 8 | . 13 14 . Device 1 | . 1 . 2 Storage 14 | . 14 14 14 Protection 12 | . 11 14 11 Energy Gun 1 | . . . 3 Energy Cannon 2 | . . . 4 Ballistic Gun 11 | . 18 16 2 Ballistic Cannon 12 | . 8 11 16 Peak Build Rating 15 | 7 12 12 15 Average Rating 11 | 5 9 10 13 On Entrance 7 | . 7 10 12 Naked Turns . | . . . . Heaviest Build 44 | 14 40 40 44 Greatest Support 40 | 32 20 16 40 Greatest Overweight (x) 8 | 1 8 2 2 Average Overweight (x) 1 | . 2 2 . Largest Inventory Capacity 15 | 8 15 15 15 Average Capacity 14 | 7 14 15 15 Most Carried 15 | 5 15 15 15 Average Carried 13 | 2 13 14 14 Final Capacity 15 | 8 15 15 15 Final Carried 15 | 5 15 15 15 Class Distribution -------------------- 100% | Mutant Dominant Class ---------------- Mutant | -10/Materials Mutant | -10/Mines Mutant | -10/Subcaves Resources | -11 -10 -10 -10 ----------- Run | Yrd Mat Min Sub Matter Collected 1606 | 333 496 164 613 Remotely . | . . . . Salvage Created 1254 | 115 629 149 361 Parts 83 | 7 43 8 25 Haulers Intercepted 2 | . 2 . . Recyclers Shooed 1 | . . 1 . Parts Field Recycled . | . . . . Retrieved Matter . | . . . . Parts Self-Destructed 11 | . . . 11 Prevented . | . . . . Kills | -11 -10 -10 -10 ------- Run | Yrd Mat Min Sub Combat Hostiles Destroyed 24 | . 11 2 11 Guns 13 | . 9 1 3 Cannons 11 | . 2 1 8 Classes Destroyed 11 | 3 5 . 3 Worker 2 | 1 1 . . Tunneler 4 | 2 . 2 . Hauler 2 | . 2 . . Recycler 3 | 1 1 1 . Operator 1 | . 1 . . Turret 2 | . . . 2 Watcher 3 | . 3 . . Swarmer 6 | . 3 1 2 Grunt 9 | . 8 1 . Cobbler 1 | . . . 1 Subdweller 9 | . . . 9 Best Kill Streak 4 | 3 3 1 4 Combat Bots Only 3 | . 3 1 2 Max Kills in Single Turn 1 | 1 1 1 1 Gunslinging . | . . . . Exploded . | . . . . Melee . | . . . . Uniques/NPCs Destroyed . | . . . . Combat | -11 -10 -10 -10 -------- Run | Yrd Mat Min Sub Hostile Shots Fired 137 | . 42 7 88 Missed 31 | . 8 3 20 Damage Taken 2185 | . 429 37 1719 Core 280 | . 32 . 248 Absorbed by Shields . | . . . . Core Remaining (%) 100 | 100 . . . Volleys Fired 174 | 15 49 12 98 Largest 2 | 2 2 2 2 Hottest 119 | 40 78 78 119 Shots Fired 333 | 30 98 24 181 Gun 178 | 30 87 12 49 Cannon 155 | . 11 12 132 Launcher . | . . . . Special . | . . . . Kinetic 267 | 30 98 24 115 Thermal 66 | . . . 66 Explosive . | . . . . Electromagnetic . | . . . . Robot Hit Streak 19 | 6 14 12 19 Robot Miss Streak 3 | 3 2 3 3 Penetration Max . | . . . . Secondary Targets 1 | . . 1 . Max Gunslinging Chain 1 | . . 1 . Shots Hit Robots 215 | 16 69 13 117 Core Hits 76 | 6 32 7 31 Critical Kills . | . . . . Critical Parts Destroyed 2 | . 1 . 1 Critical Strikes 10 | . 2 2 6 Destroy 4 | . 1 . 3 Blast 6 | . 1 2 3 Melee Attacks . | . . . . Impact . | . . . . Slashing . | . . . . Piercing . | . . . . Sneak Attacks . | . . . . Combat Hostiles . | . . . . Follow-up Attacks . | . . . . Damage Inflicted 3668 | 153 905 216 2394 Guns 1635 | 153 732 90 660 Cannons 2033 | . 173 126 1734 Explosions . | . . . . Melee . | . . . . Ramming . | . . . . Kinetic 2867 | 153 905 216 1593 Thermal 801 | . . . 801 Explosive . | . . . . Electromagnetic . | . . . . Impact . | . . . . Slashing . | . . . . Piercing . | . . . . Highest Corruption . | . . . . Average Corruption . | . . . . Corruption Purged . | . . . . Corruption Blocked . | . . . . Overload Shots . | . . . . Overflow Damage 1 | . . 1 . Projectiles 1 | . . 1 . Explosions . | . . . . Melee . | . . . . Knockbacks 16 | . 3 2 11 Impact . | . . . . Kinetic 16 | . 3 2 11 Secondary . | . . . . Self-Inflicted Damage . | . . . . Shots . | . . . . Rammed . | . . . . Targets Rammed . | . . . . Kicked . | . . . . Crushed . | . . . . Highest Temperature 303 | . 84 108 303 Average Temperature 45 | . 22 41 138 Received Heat Transfer 679 | . 228 6 445 Siege Activations . | . . . . Robots Corrupted . | . . . . Combat Hostiles . | . . . . Parts Fried . | . . . . Impact Corruptions . | . . . . Robots Melted . | . . . . Combat Hostiles . | . . . . Parts Melted 2 | . . . 2 Heat Transferred 1020 | . . . 1020 Parts Sabotaged . | . . . . Parts Stolen . | . . . . Parts Stripped . | . . . . Power Chain Reactions . | . . . . Alert | -11 -10 -10 -10 ------- Run | Yrd Mat Min Sub Peak Influence 188 | 20 188 106 . Initial 43 | . 13 43 . Average 48 | 5 52 46 . Maximum Alert Level . | . . . . Low Security (%) 100 | 100 100 100 . Level 1 . | . . . . Level 2 . | . . . . Level 3 . | . . . . Level 4 . | . . . . Level 5 . | . . . . High Security . | . . . . Max Security . | . . . . Squads Dispatched 3 | . 3 . . Investigation 2 | . 2 . . Extermination . | . . . . Reinforcement 1 | . 1 . . Assault . | . . . . Garrison . | . . . . Intercept . | . . . . Searches Triggered . | . . . . Construction Impeded . | . . . . Haulers Reinforced . | . . . . Active Scanning Responses . | . . . . Cargo Convoy Interrupts . | . . . . Stealth | -11 -10 -10 -10 --------- Run | Yrd Mat Min Sub Distress Signals 1 | . 1 . . Communications Jammed . | . . . . Distress Signals . | . . . . Times Spotted 37 | . 16 5 16 Peak Tracking Total 6 | . 4 3 6 Tactical Retreats 1 | . . . 1 Traps | -11 -10 -10 -10 ------- Run | Yrd Mat Min Sub Traps Triggered 7 | . 7 . . Indirectly . | . . . . Trap Hack Attempts . | . . . . Triggered . | . . . . Disarmed . | . . . . Reprogrammed . | . . . . Reused . | . . . . Traps Extracted . | . . . . Installed 1 | . . . 1 Triggered . | . . . . Most Traps Carried 1 | . . . 1 Machines | -11 -10 -10 -10 ---------- Run | Yrd Mat Min Sub Machines Disabled 2 | . 1 1 . Max in Single Turn 1 | . 1 1 . Machines Repaired . | . . . . Machines Dismantled . | . . . . Machines Sabotaged . | . . . . Overloaded Fab Kills . | . . . . Hacking | -11 -10 -10 -10 --------- Run | Yrd Mat Min Sub Machines Accessed 7 | . 7 . . Terminals 7 | . 7 . . Fabricators . | . . . . Repair Stations . | . . . . Recycling Units . | . . . . Scanalyzers . | . . . . Garrison Access . | . . . . Total Hacks 19 | . 19 . . Successful 12 | . 12 . . Failed 7 | . 7 . . Catastrophic 1 | . 1 . . Database Lockouts . | . . . . Manual 18 | . 18 . . Terminals 19 | . 19 . . Fabricators . | . . . . Repair Stations . | . . . . Recycling Units . | . . . . Scanalyzers . | . . . . Garrison Access . | . . . . Terminal Hacks 4 | . 4 . . Part Schematic 2 | . 2 . . Terminal Index 1 | . 1 . . Locate Traps 1 | . 1 . . Fabricator Hacks . | . . . . Repair Station Hacks . | . . . . Recycling Unit Hacks . | . . . . Scanalyzer . | . . . . Garrison Access Hacks . | . . . . Unauthorized Hacks 8 | . 8 . . Terminals 8 | . 8 . . Botnet 2 | . 2 . . Operators 1 | . 1 . . Skim 5 | . 5 . . Fabricators . | . . . . Repair Stations . | . . . . Recycling Units . | . . . . Scanalyzers . | . . . . Garrison Access . | . . . . Data Cores Recovered . | . . . . Used . | . . . . Hacking Detections 6 | . 6 . . Full Trace Events . | . . . . Feedback Events . | . . . . Feedback Blocked . | . . . . Robot Schematics Acquired . | . . . . Robots Built . | . . . . Authchips . | . . . . Time . | . . . . Total Robot Build Rating . | . . . . Part Schematics Acquired 2 | . 2 . . Parts Built . | . . . . Authchips . | . . . . Time . | . . . . Total Part Build Rating . | . . . . Parts Repaired . | . . . . Time . | . . . . Parts Recycled . | . . . . Recycled Matter . | . . . . Retrieved Matter . | . . . . Retrieved Components . | . . . . Parts Scanalyzed . | . . . . Part Schematics Acquired . | . . . . Parts Damaged . | . . . . Bothacking | -11 -10 -10 -10 ------------ Run | Yrd Mat Min Sub Used RIF Installer . | . . . . Robots Hacked . | . . . . Non-combat . | . . . . Combat . | . . . . Robot Hacks Applied . | . . . . Relay Couplers Released . | . . . . Fabnet Peak Effective % . | . . . . Robots Rewired . | . . . . Allies Hacked . | . . . . Hacks Repelled . | . . . . Allies | -11 -10 -10 -10 -------- Run | Yrd Mat Min Sub Total Allies 3 | . . 3 . Largest Group 3 | . . 3 2 Highest-Rated Group 40 | . . 40 32 Highest-Rated Ally 16 | . . 16 16 Total Orders . | . . . . Ally Attacks 35 | . . 20 15 Total Damage 385 | . . 193 192 Kills 5 | . . 3 2 Allies Corrupted . | . . . . Allies Melted . | . . . . Intel | -11 -10 -10 -10 ------- Run | Yrd Mat Min Sub Robot Analysis Total . | . . . . Derelict Logs Recovered 1 | . . . 1 Drone Launches . | . . . . Drone Recoveries . | . . . . Exploration | -11 -10 -10 -10 ------------- Run | Yrd Mat Min Sub Turns Passed 4639 | 122 1743 794 1980 Spaces Moved 2051 | 59 651 541 800 Core 8 | 6 2 . . Treads 772 | 10 7 . 755 Legs . | . . . . Wheels 1271 | 43 642 541 45 Hover . | . . . . Flight . | . . . . Fastest Speed 50 | 50 95 130 130 Average Speed 143 | 103 124 130 172 Slowest Speed 450 | 160 450 130 240 Overloaded Moves . | . . . . Propulsion Burnouts . | . . . . Robots Hopped . | . . . . Cave-ins Triggered 1 | . . . 1 Exploration Rate (%) 60 | 6 98 85 53 Regions Visited 3 Branch Regions 2 Pre-discovered Areas 1 | . . . 1 Known Exits Taken 2 | . 1 1 . Unknown Exits Taken 1 | 1 . . . Scrap Searched 6 | . . 1 5 Spaces Dug 6 | . . . 6 Terrain Destroyed 10 | . . 1 9 Melee . | . . . . Projectile 10 | . . 1 9 AOE . | . . . . Terrain Rammed . | . . . . Walls Destroyed . | . . . . Machines Disabled . | . . . . Actions | -11 -10 -10 -10 --------- Run | Yrd Mat Min Sub Total 3408 | 88 1483 609 1228 Wait 1071 | 1 734 49 287 Move 2048 | 58 650 540 800 Hop . | . . . . Pick Up 35 | 5 14 3 13 Fast Attach 24 | 7 16 . 1 Attach 11 | . 3 . 8 Detach 2 | . 2 . . Swap 23 | 2 8 2 11 Drop 19 | . 7 3 9 Fire 174 | 15 49 12 98 Melee . | . . . . Ram . | . . . . Kick . | . . . . Crush . | . . . . Escape Stasis . | . . . . Rewire . | . . . . Trap 1 | . . . 1 Miscellaneous . | . . . . Route ------- -11/Scrapyard -10/Materials (discovered 6 exits: *Mat x3 / *Min x2 / Sub) -10/Mines (discovered 3 exits: *Mat x2 / *Sub) -10/Subcaves (discovered 2 exits: *Mat / [*Rec]) History --------- Turn | Location | Event 30 | -11/Scrapyard | Discovered new exit (range 15) 123 | -11/Scrapyard | Entered Materials 309 | -10/Materials | Build established: Mutant 317 | -10/Materials | Discovered new exit (range 14) 611 | -10/Materials | Discovered new exit (range 10) 1114 | -10/Materials | Learned location of 2 exits from Mines 1215 | -10/Materials | Identified exit to Subcaves 1215 | -10/Materials | Identified exit to Mines 1253 | -10/Materials | Identified exit to Materials 1866 | -10/Materials | Entered Mines 1990 | -10/Mines | Assisted by bots powering up and referring to "LRC-V3" 2648 | -10/Mines | Discovered exit to Subcaves (range 7) 2660 | -10/Mines | Entered Subcaves 2660 | -10/Subcaves | Accompanied by 2 allies 2674 | -10/Subcaves | Discovered new exit (range 15) 3192 | -10/Subcaves | Identified exit to Materials 3258 | -10/Subcaves | Shifting Twisted Machinery released Sub. Laser 3296 | -10/Subcaves | Shifting Twisted Machinery released Piercing Trap 3456 | -10/Subcaves | Ambushed by Subdwellers from Twisted Machinery 3546 | -10/Subcaves | Core integrity fell below 50% 3727 | -10/Subcaves | Learned location of Zion (-6) 3727 | -10/Subcaves | Met a Zionite searching for "candidates" 3931 | -10/Subcaves | Core integrity fell below 20% 4162 | -10/Subcaves | Disturbed a concealed Subdweller 4628 | -10/Subcaves | Ambushed by Subdweller buried in earth 4641 | -10/Subcaves | Crushed by falling debris 4641 | -10/Subcaves | Smashed by cave-in Last Messages --------------- 04285_ Acquired 9 matter. 04287_ Acquired 8 matter. 04519_ Subatomizers dissect the Disposable Heat Sink. 04629_ UN-QXN(R): "ARGHSUB!" 04630_ UN-QXN(R) suffers critical hit (Destroy). 04630_ Critical hit (Meltdown: +280). 04632_ Lgt. Treads destroyed. 04636_ Sub. Optics melted. 04636_ Sub. Power Source melted. 04636_ UN-QXN(R) destroyed. 04639_ Acquired 25 matter. 04641_ The unstable cave ceiling collapses. 04641_ Crushed by falling debris. 04641_ Mak. System Restoration Module destroyed. 04641_ System corrupted by crushing effect (+5). 04641_ Sub. Beam Cannon destroyed. 04641_ System corrupted by crushing effect (+2). 04641_ Sub. Power Source destroyed. 04641_ System corrupted by crushing effect (+4). Map ----- +----------------------------------------------------+ | ????# & ["#### ##?## ## #?# | | ?????# && #### #?? | | ?????## ### | | ??????# ### # | | ??????# #?# ## ### # %## | | ??###### ### # ##### & ### | | ?## ##### #### #####" #?# | | ?# ### ## ##?#### ## ## # #?## # | | ?# ##### #??###### =#??# ## | | ??# #??# #### # %##??# ##? | | ??### ##??## ## # " #??# ###?? | | ????#### #??## " ! & ###?# ###???? | | ???????# ##?## # ####& [" #??# ##?????? | | ??????## ### #####??#&%&& ### #??????? | | ??????# ##??????#%%" ! ## ???????? | | ??????# #???????########## ##???????? | | ??????## ## #?????????????????###?????????? | | ???????# ## ###?????????????????????????????? | | ???###### ## ##???????????????????????????????? | | ??## #?## "##"##????????????????????????????????? | | ??# #??# "#######??????????????????????????????? | | ??# #???# ### ###????????????????????????????? | | ?## ##??# ## ##?#####?????????????????????? | | ?# ##### "" " ### #?#???????????????????? | | ?#### # "" " ; #&# #???????????????????? | | ???## &@!#?#???????????????????? | | ???# ]=#?????????????????????? | | ??# ########### ## ####?????????????????????? | | ??# #?????????#######????????????????????????? | | ??#######????????????????????????????????????????? | | ?????????????????????????????????????????????????? | | ?????????????????????????????????????????????????? | | ?????????????????????????????????????????????????? | | ?????????????????????????????????????????????????? | | ?????????????????????????????????????????????????? | | ?????????????????????????????????????????????????? | | ?????????????????????????????????????????????????? | | ?????????????????????????????????????????????????? | | ?????????????????????????????????????????????????? | | ?????????????????????????????????????????????????? | | ?????????????????????????????????????????????????? | | ?????????????????????????????????????????????????? | | ?????????????????????????????????????????????????? | | ?????????????????????????????????????????????????? | | ?????????????????????????????????????????????????? | | ?????????????????????????????????????????????????? | | ?????????????????????????????????????????????????? | | ?????????????????????????????????????????????????? | | ?????????????????????????????????????????????????? | | ?????????????????????????????????????????????????? | +----------------------------------------------------+ Best States ------------- Heat Dissipation 25 Energy Generation 10 Energy Capacity 250 Matter Stores 300 Matter Capacity 300 Sight Range 16 Terrain Scan Density 10 Armor Coverage 225 Evasion (%) 41 Recoil Reduction 2 Item Schematics ----------------- Hcp. Storage Unit | -10/Materials | Hacked Huge Storage Unit | -10/Materials | Hacked Robot Schematics ------------------ None Fabricated ------------ Nothing Alien Tech Used ----------------- None Achievements -------------- None Challenges ------------ None Game ------ Seed AngularPotentialFocus Manual? 0 Play Time 00:30:55 Cumulative 475.5 hours Start 2024.08.15 @ 10:13:34 End 2024.08.15 @ 15:09:06 Sessions 1 Manual Loads 0 Difficulty Rogue Special Mode None Game No. 180 Rogue 177 Adventurer 3 Explorer 0 Win Type - Total 7 Types 4/1/0/1/0/1/0/0/0 Lore% 64 Gallery% 85 Achievement% 86 Wizard Run 0 Options --------- Layout 1 ASCII 0 Keyboard 0 Movement Numpad Keybinds 0 Fullscreen 2 Font 24/Smallcaps Map View 50x35 Zoom Use 0% Tactical HUD 1 Map Filters NONE Filters NONE Steam 1 RUN: 976324c5-bdbb-4386-bd77-437f23fb5db7